fUSD/lending_fUSD_20251103
["ID","MTS","AMOUNT","RATE_DAILY","PERIOD"]
[392944929,1762163232607,-500.0,0.00036973,120]
[392944930,1762163232680,-500.0,0.00036973,120]
[392944931,1762163232753,-500.0,0.00036973,120]
[392944932,1762163232828,-500.0,0.00036973,120]
[392944933,1762163232904,-500.0,0.00036973,120]
[392944934,1762163232979,-500.0,0.00036973,120]
[392944935,1762163233053,-500.0,0.00036973,120]
[392944936,1762163233127,-500.0,0.00036973,120]
[392944937,1762163233200,-500.0,0.00036973,120]
[392944938,1762163233273,-252.68699108,0.00036973,120]
[392944939,1762163233347,-500.0,0.00036973,120]
[392944940,1762163233420,-500.0,0.00036973,120]
[392944941,1762163233492,-500.0,0.00036973,120]
[392944942,1762163233565,-427.43290914,0.00036973,120]
[392944943,1762163233639,-744.88722761,0.00036973,90]
[392944944,1762163233714,-452.74634204,0.00036973,120]
[392944945,1762163233788,-216.34223277,0.00036973,91]
[392944946,1762163233861,-252.04769835,0.00036973,120]
[392944947,1762163233934,-154.19019555,0.00036973,120]
[392944948,1762163234007,-161.32505751,0.00036973,120]
[392944949,1762163234076,-183.18469741,0.00036973,120]
[392944950,1762163234145,-910.37146455,0.00036973,120]
[392944951,1762163234213,-175.64210716,0.00036973,120]
[392944952,1762163234282,-196.319815,0.00036973,90]
[392944953,1762163234351,-456.82175016,0.00036973,120]
[392944954,1762163234418,-861.39882046,0.00036973,120]
[392944955,1762163234485,-347.95140968,0.00036973,120]
[392944956,1762163234553,-411.99484695,0.00036973,120]
[392944957,1762163234618,-981.11613853,0.00036973,120]
[392944958,1762163234683,-350.08344797,0.00036973,120]
[392944959,1762163234749,-180.7526566,0.00036973,120]
[392944960,1762163234817,-434.44361754,0.00036973,120]
[392944961,1762163234886,-155.84852043,0.00036973,120]
[392944962,1762163234954,-194.67036793,0.00036973,120]
[392944963,1762163235021,-229.34948982,0.00036973,90]
[392944964,1762163235090,-819.44922304,0.00036973,120]
[392944965,1762163235161,-306.38344945,0.00036973,120]
[392944966,1762163235231,-460.86355525,0.00036973,120]
[392944967,1762163235299,-422.11154933,0.00036973,120]
[392944968,1762163235367,-262.90229493,0.00036973,60]
[392944969,1762163235437,-455.20414391,0.00036973,120]
[392944970,1762163235510,-514.31683155,0.00036973,60]
[392944971,1762163235584,-608.17928108,0.00036973,120]
[392944972,1762163235659,-250.4333419,0.00036973,120]
[392944973,1762163235734,-927.68811,0.00036973,60]
[392944974,1762163235808,-927.68811,0.00036973,60]
[392944975,1762163235884,-927.68811,0.00036973,60]
[392944976,1762163235958,-927.68811,0.00036973,60]
[392944977,1762163236030,-927.68811,0.00036973,60]
[392944978,1762163236104,-165.92066495,0.00036973,120]
[392944979,1762163236177,-500.0,0.00036973,120]
[392944980,1762163236253,-525.41358278,0.00036973,120]
[392944981,1762163236330,-151.1863155,0.00036973,60]
[392944982,1762163236408,-22652.0,0.00036973,30]
[392944983,1762163236484,-156.0,0.00036973,120]
[392944984,1762163236560,-884.17247324,0.00036973,120]
[392944985,1762163236636,-193.58269035,0.00036973,120]
[392944986,1762163236706,-158.50361443,0.00036973,120]
[392944987,1762163236798,-172.09177114,0.00036973,120]
[392944988,1762163236871,-179.50979843,0.00036973,120]
[392944989,1762163236941,-192.0581883,0.00036973,120]
[392944990,1762163237011,-463.0,0.00036973,120]
[392944991,1762163237078,-740.7,0.00036973,120]
[392944992,1762163237140,-150.0,0.00036973,120]
[392944993,1762163237200,-150.0,0.00036973,120]
[392944994,1762163237262,-150.0,0.00036973,120]
[392944995,1762163237324,-150.0,0.00036973,120]
[392944996,1762163237387,-150.0,0.00036973,120]
[392944997,1762163237448,-150.0,0.00036973,120]
[392944998,1762163237511,-150.0,0.00036973,120]
[392944999,1762163237576,-150.0,0.00036973,120]
[392945000,1762163237640,-150.0,0.00036973,120]
[392945001,1762163237705,-150.0,0.00036973,120]
[392945002,1762163237769,-150.0,0.00036973,120]
[392945003,1762163237834,-150.0,0.00036973,120]
[392945004,1762163237900,-150.0,0.00036973,120]
[392945005,1762163237967,-150.0,0.00036973,120]
[392945006,1762163238031,-150.0,0.00036973,120]
[392945007,1762163238098,-150.0,0.00036973,120]
[392945008,1762163238163,-150.0,0.00036973,120]
[392945009,1762163238230,-150.0,0.00036973,120]
[392945010,1762163238299,-150.0,0.00036973,120]
[392945011,1762163238368,-150.0,0.00036973,120]
[392945012,1762163238433,-34330.74,0.00036973,90]
[392945013,1762163238497,-509.41062564,0.00036973,120]
[392945014,1762163238559,-272.07486374,0.00036973,120]
[392945015,1762163238617,-973.28341977,0.00036973,30]
[392945016,1762163238678,-6925.92,0.00036973,120]
[392945017,1762163238737,-6925.92,0.00036973,120]
[392945018,1762163238798,-6925.92,0.00036973,120]
[392945019,1762163238863,-6925.92,0.00036973,120]
[392945020,1762163238932,-6925.92,0.00036973,120]
[392945021,1762163239002,-6925.92,0.00036973,120]
[392945022,1762163239070,-6925.92,0.00036973,120]
[392945023,1762163239136,-6925.92,0.00036973,120]
[392945024,1762163239375,-6925.92,0.00036973,120]
[392945025,1762163239448,-6925.92,0.00036973,120]
[392945026,1762163239517,-6925.92,0.00036973,120]
[392945027,1762163239584,-6925.92,0.00036973,120]
[392945028,1762163239650,-6925.92,0.00036973,120]
[392945029,1762163239714,-6925.92,0.00036973,120]
[392945030,1762163239781,-6925.92,0.00036973,120]
[392945031,1762163239846,-6925.92,0.00036973,120]
[392945032,1762163239914,-6925.92,0.00036973,120]
[392945033,1762163239982,-6925.92,0.00036973,120]
[392945034,1762163240048,-6925.92,0.00036973,120]
[392945035,1762163240112,-6925.92,0.00036973,120]
[392945036,1762163240177,-6925.92,0.00036973,120]
[392945037,1762163240241,-6925.92,0.00036973,120]
[392945038,1762163240310,-6925.92,0.00036973,120]
[392945039,1762163240382,-6925.94424658,0.00036973,120]
[392945040,1762163240454,-5000.0,0.00036973,30]
[392945041,1762163240524,-754.86,0.00036973,30]
[392945042,1762163240593,-7166.82830719,0.00036973,120]
[392945043,1762163240661,-1741744.0825418,0.00036973,60]
[392945044,1762163242587,500.0,0.00030136,120]
[392945045,1762163242705,500.0,0.00030136,120]
[392945046,1762163245130,500.0,0.00030136,120]
[392945050,1762163253561,500.0,0.00030136,120]
[392945051,1762163254309,590.75251403,0.00030136,120]
[392945052,1762163256812,500.0,0.00030136,120]
[392945053,1762163257294,500.0,0.00030136,120]
[392945054,1762163259617,371.32579106,0.00030136,120]
[392945055,1762163261443,500.0,0.00030136,120]
[392945056,1762163261565,500.0,0.00030136,120]
[392945057,1762163263902,500.0,0.00030136,120]
[392945058,1762163271301,9750.10927384,0.00013695,2]
[392945059,1762163271324,8217.88072616,0.00013695,2]
[392945060,1762163271674,500.0,0.00030136,120]
[392945061,1762163274160,500.0,0.00030136,120]
[392945062,1762163274950,-354539.5074582,0.00036974,60]
[392945063,1762163275021,-5050.0,0.00036974,35]
[392945064,1762163275089,-2392263.63563694,0.00036974,30]
[392945065,1762163275149,-59883.00179736,0.00036974,30]
[392945066,1762163275209,-500000.0,0.00036974,30]
[392945067,1762163275277,-219.65,0.00036974,30]
[392945068,1762163275349,-1300.0,0.00036974,60]
[392945069,1762163275416,-48570.58886444,0.00036974,30]
[392945070,1762163275485,-151885.68194515,0.00036974,120]
[392945071,1762163275553,-5000.0,0.00036974,60]
[392945072,1762163275620,-5000.0,0.00036974,30]
[392945073,1762163275686,-3681.0,0.00036974,30]
[392945074,1762163275753,-172.01275,0.00036974,60]
[392945075,1762163275820,-151.01811762,0.00036974,120]
[392945076,1762163275886,-500.0,0.00036974,120]
[392945077,1762163275952,-458.57869811,0.00036974,120]
[392945078,1762163276017,-174.21392173,0.00036974,60]
[392945079,1762163276080,-172.13128031,0.00036974,50]
[392945080,1762163276143,-170.65804,0.00036974,60]
[392945081,1762163276203,-186.79253144,0.00036974,120]
[392945082,1762163276263,-169.44189339,0.00036974,30]
[392945083,1762163276331,-163.44716006,0.00036974,40]
[392945084,1762163276399,-558.63396471,0.00036974,120]
[392945085,1762163276685,-4847.08736555,0.00036974,30]
[392945086,1762163276754,-40917.16,0.00036974,60]
[392945087,1762163276813,-50000.0,0.00036974,30]
[392945088,1762163276871,-50473.94411,0.00036974,30]
[392945089,1762163276934,-384.48160694,0.00036974,30]
[392945090,1762163276996,-1009.35094846,0.00036974,120]
[392945091,1762163277056,-11302.23025216,0.00036974,120]
[392945092,1762163277116,-580.96959265,0.00036974,120]
[392945093,1762163277175,-570.92626967,0.00036974,30]
[392945094,1762163277234,-6963.33628533,0.00036974,80]
[392945095,1762163277297,-311.2986836,0.00036974,120]
[392945096,1762163277365,-2020.67674569,0.00036974,120]
[392945097,1762163277436,-50000.0,0.00036974,33]
[392945098,1762163277509,-50000.0,0.00036974,34]
[392945099,1762163277590,-35413.50497322,0.00036974,120]
[392945100,1762163277656,-100000.00000001,0.00036974,30]
[392945101,1762163277721,-830.17201768,0.00036974,120]
[392945102,1762163277781,-1687.92,0.00036974,90]
[392945103,1762163277842,-159.999999,0.00036974,120]
[392945104,1762163277907,-8915.83296752,0.00036974,48]
[392945105,1762163277969,-10000.0,0.00036974,60]
[392945106,1762163278031,-5050.0,0.00036974,34]
[392945107,1762163278091,-3000.0,0.00036974,120]
[392945108,1762163278154,-35291.11412306,0.00036974,120]
[392945109,1762163278243,500.0,0.00030136,120]
[392945110,1762163280012,500.0,0.00030136,120]
[392945111,1762163282693,157.13660947,0.00030136,120]
[392945112,1762163283150,500.0,0.00030136,120]
[392945113,1762163285814,-91548.12587694,0.00036974,120]
[392945114,1762163285898,-8270.35469682,0.00036974,38]
[392945115,1762163285982,-2958.97369765,0.00036974,60]
[392945116,1762163286059,-1631.22368335,0.00036974,120]
[392945117,1762163286141,-491.88,0.00036974,30]
[392945118,1762163286218,-5919.11,0.00036974,30]
[392945119,1762163286296,-189366.7830784,0.00036974,60]
[392945120,1762163286383,-150.0,0.00036974,30]
[392945121,1762163286463,-185.13209844,0.00036974,120]
[392945122,1762163286541,-435722.0675,0.00036974,30]
[392945123,1762163286618,-500.0,0.00036974,120]
[392945124,1762163286698,-317.87981691,0.00036974,120]
[392945125,1762163286777,-197.0,0.00036974,120]
[392945126,1762163286856,-168.90350449,0.00036974,60]
[392945127,1762163286943,-153.6986399,0.00036974,30]
[392945128,1762163287022,-216.50362741,0.00036974,120]
[392945129,1762163287097,-1253.0,0.00036974,120]
[392945130,1762163287177,-20719.41812843,0.00036974,30]
[392945131,1762163287251,-203.45731317,0.00036974,30]
[392945132,1762163287328,-93774.65216496,0.00036974,30]
[392945133,1762163287406,-922.89501363,0.00036974,30]
[392945134,1762163287478,-274.27823184,0.00036974,120]
[392945135,1762163287553,-342.8056119,0.00036974,120]
[392945136,1762163287626,-152.69432395,0.00036974,60]
[392945137,1762163287701,-166.7393536,0.00036974,60]
[392945138,1762163287778,-9893.9348754,0.00036974,120]
[392945139,1762163287857,-216.0,0.00036974,120]
[392945140,1762163287937,-8202.42938111,0.00036974,120]
[392945141,1762163288015,-173.77556093,0.00036974,120]
[392945142,1762163288093,-407.03596814,0.00036974,120]
[392945143,1762163288170,-1625.71647929,0.00036974,120]
[392945144,1762163288250,-188.26048212,0.00036974,30]
[392945145,1762163288337,-153.16452773,0.00036974,30]
[392945146,1762163288427,-501.79279634,0.00036974,30]
[392945147,1762163288514,-288.44492643,0.00036974,30]
[392945148,1762163288596,-214.95771925,0.00036974,30]
[392945149,1762163288679,-200.0,0.00036974,30]
[392945150,1762163288762,-200.0,0.00036974,30]
[392945151,1762163288846,-24665.0,0.00036974,30]
[392945152,1762163288932,-5154.92630935,0.00036974,60]
[392945153,1762163289016,-1624.83255287,0.00036974,60]
[392945154,1762163289097,-12930.67207666,0.00036974,30]
[392945155,1762163289176,-108213.03408802,0.00036974,120]
[392945156,1762163289256,-218.12451802,0.00036974,120]
[392945157,1762163289338,-359.16743456,0.00036974,120]
[392945158,1762163289417,-544098.74205651,0.00036974,85]
[392945159,1762163289495,-4800.0,0.00036974,120]
[392945160,1762163289577,-188.827448,0.00036974,120]
[392945161,1762163289656,-1718.38376706,0.00036974,120]
[392945162,1762163289735,-17928.47,0.00036974,30]
[392945163,1762163289815,-36855.05,0.00036974,60]
[392945164,1762163289894,-3744.96962388,0.00036974,120]
[392945165,1762163289971,-434.44552321,0.00036974,120]
[392945166,1762163290051,-209.97524756,0.00036974,120]
[392945167,1762163290130,-261.10038207,0.00036974,30]
[392945168,1762163290206,-160.64158875,0.00036974,120]
[392945169,1762163290286,-1092.0,0.00036974,30]
[392945170,1762163290365,-1092.0,0.00036974,30]
[392945171,1762163290445,-1092.0,0.00036974,30]
[392945172,1762163290523,-1092.0,0.00036974,30]
[392945173,1762163290606,-1092.0,0.00036974,30]
[392945174,1762163290683,-997.0,0.00036974,30]
[392945175,1762163290760,-543.05617006,0.00036974,120]
[392945176,1762163290837,-5050.0,0.00036974,37]
[392945177,1762163290911,-150.0,0.00036974,120]
[392945178,1762163290981,-200.0,0.00036974,30]
[392945179,1762163291049,-300.0,0.00036974,30]
[392945180,1762163291785,500.0,0.00030136,120]
[392945181,1762163291923,556.63357535,0.00030136,120]
[392945182,1762163292686,156.86,0.00018,60]
[392945183,1762163293074,398.52080631,0.00030136,120]
[392945184,1762163293408,500.0,0.00030136,120]
[392945185,1762163295005,173.74415046,0.00030136,120]
[392945186,1762163295466,462.19029317,0.00030136,120]
[392945187,1762163295891,500.0,0.00030136,120]
[392945188,1762163296930,500.0,0.00030136,120]
[392945189,1762163302504,160.07310499,0.00030136,120]
[392945190,1762163305640,500.0,0.00030136,120]
[392945191,1762163306346,417.90882805,0.00030136,120]
[392945192,1762163306576,500.0,0.00030136,120]
[392945193,1762163308272,338.80334784,0.00030136,120]
[392945194,1762163310745,383.19514906,0.00030136,120]
[392945195,1762163312252,297.76873188,0.00030136,120]
[392945196,1762163313126,177.66591672,0.00030136,120]
[392945197,1762163315595,500.0,0.00030136,120]
[392945198,1762163316409,283.88003547,0.00030136,120]
[392945199,1762163318948,225.26502839,0.00030136,120]
[392945200,1762163320492,500.0,0.00030136,120]
[392945201,1762163320573,404.75961074,0.00030136,120]
[392945202,1762163321850,496.63164314,0.00030136,120]
[392945203,1762163323897,374.31056364,0.00030136,120]
[392945204,1762163324979,435722.0675,0.00036974,30]
[392945205,1762163325893,454.67570366,0.00030136,120]
[392945206,1762163331476,500.0,0.00030136,120]
[392945207,1762163333587,388.61201673,0.00030136,120]
[392945208,1762163333751,295.93028517,0.00030136,120]
[392945209,1762163335377,500.0,0.00030136,120]
[392945210,1762163336020,340.01272106,0.00030136,120]
[392945211,1762163337806,150.0,0.00036974,30]
[392945212,1762163340936,500.0,0.00030136,120]
[392945213,1762163342485,500.0,0.00030136,120]
[392945214,1762163342901,478.91781136,0.00030136,120]
[392945215,1762163344817,500.0,0.00030136,120]
[392945216,1762163349902,500.0,0.00030136,120]
[392945217,1762163352552,500.0,0.00030136,120]
[392945218,1762163355369,500.0,0.00030136,120]
[392945219,1762163359246,297.11889189,0.00030136,120]
[392945220,1762163361629,618.03778874,0.00030136,120]
[392945221,1762163362124,500.0,0.00030136,120]
[392945222,1762163364381,500.0,0.00030136,120]
[392945223,1762163370142,500.0,0.00030136,120]
[392945224,1762163374409,222.26725906,0.00030136,120]
[392945225,1762163376808,500.0,0.00030136,120]
[392945226,1762163378328,500.0,0.00030136,120]
[392945227,1762163378887,166.66,0.00013699,2]
[392945228,1762163379094,166.66,0.00013836,2]
[392945229,1762163379297,166.66,0.00013973,2]
[392945230,1762163379492,266.09893532,0.00030136,120]
[392945231,1762163379535,166.66,0.0001411,2]
[392945232,1762163380687,-166.66,0.00014247,2]
[392945233,1762163380708,-8.81370159,0.00014384,2]
[392945234,1762163383138,-157.84629841,0.00014384,2]
[392945235,1762163383160,-141.65406467,0.00014388,2]
[392945236,1762163385305,435722.0675,0.00036974,30]
[392945237,1762163386039,500.0,0.00030136,120]
[392945238,1762163390787,500.0,0.00030136,120]
[392945239,1762163393132,446.57223568,0.00030136,120]
[392945240,1762163396751,500.0,0.00030136,120]
[392945241,1762163400987,-205.01292417,0.00014388,2]
[392945242,1762163401265,500.0,0.00030136,120]
[392945243,1762163403009,500.0,0.00030136,120]
[392945244,1762163404821,-223.5265398,0.00014388,2]
[392945245,1762163405990,500.0,0.00030136,120]
[392945246,1762163406846,500.0,0.00030136,120]
[392945247,1762163408770,500.0,0.00030136,120]
[392945248,1762163417832,500.0,0.00030136,120]
[392945249,1762163418469,500.0,0.00030136,120]
[392945250,1762163422234,500.0,0.00030136,120]
[392945251,1762163422332,500.0,0.00030136,120]
[392945252,1762163423227,500.0,0.00030136,120]
[392945253,1762163423381,632.8,0.00030136,120]
[392945260,1762163432237,-331.10297736,0.00014388,2]
[392945262,1762163432247,-150.0,0.0001446,2]
[392945264,1762163432257,-250.0,0.00014473,2]
[392945266,1762163432266,-167.1924904,0.00014485,2]
[392945268,1762163432276,-235.79819775,0.00014485,2]
[392945270,1762163432286,-216.94891303,0.00014501,2]
[392945272,1762163432295,-895.02206413,0.00014558,2]
[392945274,1762163432304,-1200.0,0.0001457,2]
[392945276,1762163432313,-300.0,0.00014571,2]
[392945278,1762163432322,-151.0,0.00014571,2]
[392945279,1762163432331,-514.84070869,0.00014571,2]
[392945280,1762163432340,-289.52694105,0.00014571,2]
[392945281,1762163432349,-322.6107,0.00014571,2]
[392945282,1762163432359,-1200.0,0.00014572,2]
[392945283,1762163432367,-150.0,0.00014572,2]
[392945284,1762163432376,-566.87953643,0.00014573,2]
[392945285,1762163432385,-500.0,0.00014573,2]
[392945286,1762163432395,-375.05092064,0.00014573,2]
[392945287,1762163432406,-29.65429693,0.00014573,2]
[392945288,1762163432416,-500.0,0.00014573,2]
[392945289,1762163432425,-485.23429642,0.00014573,2]
[392945290,1762163432436,-15.50082951,0.00014573,2]
[392945291,1762163432445,-500.0,0.00014573,2]
[392945292,1762163432455,-500.0,0.00014573,2]
[392945293,1762163432464,-500.0,0.00014573,2]
[392945294,1762163432473,-500.0,0.00014573,2]
[392945295,1762163432482,-160.4397201,0.00014573,2]
[392945296,1762163432491,-500.0,0.00014573,2]
[392945297,1762163432500,-224.78415886,0.00014573,2]
[392945298,1762163432510,-500.0,0.00014573,2]
[392945299,1762163432519,-500.0,0.00014573,2]
[392945300,1762163432529,-500.0,0.00014573,2]
[392945301,1762163432538,-500.0,0.00014573,2]
[392945302,1762163432547,-500.0,0.00014573,2]
[392945303,1762163432556,-116.60179443,0.00014573,2]
[392945304,1762163432596,-383.39820557,0.00014573,2]
[392945305,1762163432605,-500.0,0.00014573,2]
[392945306,1762163432615,-500.0,0.00014573,2]
[392945307,1762163432624,-500.0,0.00014573,2]
[392945308,1762163432637,-199.2262633,0.00014573,2]
[392945309,1762163432646,-606.20059403,0.00014573,2]
[392945310,1762163432655,-500.0,0.00014573,2]
[392945311,1762163432664,-500.0,0.00014573,2]
[392945312,1762163432674,-410.35411142,0.00014573,2]
[392945313,1762163432683,-500.0,0.00014573,2]
[392945314,1762163432693,-500.0,0.00014573,2]
[392945315,1762163432704,-500.0,0.00014573,2]
[392945316,1762163432714,-500.0,0.00014573,2]
[392945317,1762163432723,-500.0,0.00014573,2]
[392945318,1762163432732,-500.0,0.00014573,2]
[392945319,1762163432741,-500.60577954,0.00014573,2]
[392945320,1762163432751,-180.02,0.00014577,2]
[392945321,1762163432759,-500.0,0.00014579,2]
[392945322,1762163432768,-265.29382994,0.00014579,2]
[392945323,1762163432777,-92.61238551,0.00014579,2]
[392945324,1762163432788,-222.26004747,0.00014579,2]
[392945325,1762163432797,-500.0,0.00014579,2]
[392945326,1762163432807,-500.0,0.00014579,2]
[392945327,1762163432816,-500.0,0.00014579,2]
[392945328,1762163432826,-500.0,0.00014579,2]
[392945329,1762163432835,-500.0,0.00014579,2]
[392945330,1762163432844,-500.0,0.00014579,2]
[392945331,1762163432853,-500.0,0.00014579,2]
[392945332,1762163432862,-500.0,0.00014579,2]
[392945333,1762163432871,-500.0,0.00014579,2]
[392945334,1762163432880,-500.0,0.00014579,2]
[392945335,1762163432889,-500.0,0.00014579,2]
[392945336,1762163432898,-456.93405801,0.00014579,2]
[392945337,1762163432909,-500.0,0.00014579,2]
[392945338,1762163432920,-500.0,0.00014579,2]
[392945339,1762163432929,-500.0,0.00014579,2]
[392945340,1762163432938,-500.0,0.00014579,2]
[392945341,1762163432947,-500.0,0.00014579,2]
[392945342,1762163432957,-500.0,0.00014579,2]
[392945343,1762163432966,-500.0,0.00014579,2]
[392945344,1762163432976,-618.96023538,0.00014579,2]
[392945345,1762163432988,-509.40808556,0.00014579,2]
[392945346,1762163432998,-500.0,0.00014579,2]
[392945347,1762163433007,-401.48926969,0.00014579,2]
[392945348,1762163433017,-1206.83,0.00014579,2]
[392945349,1762163433025,-500.0,0.00014579,2]
[392945350,1762163433035,-500.0,0.00014579,2]
[392945351,1762163433044,-500.0,0.00014579,2]
[392945352,1762163433053,-500.0,0.00014579,2]
[392945353,1762163433063,-500.0,0.00014579,2]
[392945354,1762163433072,-428.98509959,0.00014579,2]
[392945355,1762163433082,-500.0,0.00014579,2]
[392945356,1762163433090,-500.0,0.00014579,2]
[392945357,1762163433100,-500.0,0.00014579,2]
[392945358,1762163433109,-500.0,0.00014579,2]
[392945359,1762163433118,-500.0,0.00014579,2]
[392945360,1762163433128,-500.0,0.00014579,2]
[392945361,1762163433138,-500.0,0.00014579,2]
[392945362,1762163433147,-500.0,0.00014579,2]
[392945363,1762163433156,-500.0,0.00014579,2]
[392945364,1762163433165,-500.0,0.00014579,2]
[392945365,1762163433174,-500.0,0.00014579,2]
[392945366,1762163433185,-500.0,0.00014579,2]
[392945367,1762163433194,-500.0,0.00014579,2]
[392945368,1762163433203,-332917.72149745,0.0001458,2]
[392945369,1762163433215,-25717.10902302,0.0001458,2]
[392945370,1762163433226,-61365.16947953,0.0001458,2]
[392945371,1762163433235,-150.0,0.00014585,2]
[392945372,1762163433251,-167.1924904,0.00014589,2]
[392945373,1762163433261,-895.02206406,0.00014596,2]
[392945374,1762163433272,-895.02206406,0.00014634,2]
[392945375,1762163433282,-895.02206406,0.00014672,2]
[392945376,1762163433291,-500.0,0.00014679,2]
[392945377,1762163433300,-500.0,0.00014679,2]
[392945378,1762163433309,-500.0,0.00014679,2]
[392945379,1762163433319,-500.0,0.00014679,2]
[392945380,1762163433328,-500.0,0.00014679,2]
[392945381,1762163433338,-500.0,0.00014679,2]
[392945382,1762163433347,-610.29,0.00014679,2]
[392945383,1762163433356,-525.88000754,0.00014679,2]
[392945384,1762163433365,-167.1924904,0.00014693,2]
[392945385,1762163433375,-895.02206406,0.0001471,2]
[392945386,1762163433384,-500.0,0.00014712,2]
[392945387,1762163433393,-177.0,0.00014745,2]
[392945388,1762163433403,-895.02206406,0.00014748,2]
[392945389,1762163433415,-500.0,0.00014767,2]
[392945390,1762163433424,-177.0,0.00014771,2]
[392945391,1762163433433,-895.02206406,0.00014786,2]
[392945392,1762163433442,-167.1924904,0.00014796,2]
[392945393,1762163433451,-562.59782376,0.0001481,2]
[392945394,1762163433460,-895.02206406,0.00014824,2]
[392945395,1762163433469,-1206.83,0.00014853,2]
[392945396,1762163433478,-450.0,0.00014853,2]
[392945397,1762163433488,-562.59782376,0.00014855,2]
[392945398,1762163433498,-895.02206406,0.00014862,2]
[392945399,1762163433507,-200.0,0.0001488,2]
[392945400,1762163433516,-264.85784505,0.0001488,2]
[392945401,1762163433526,-318.4826922,0.0001488,2]
[392945402,1762163433535,-5000.0,0.0001488,2]
[392945403,1762163433544,-318.48269219,0.0001489,2]
[392945404,1762163433553,-150.0,0.000149,2]
[392945405,1762163433563,-150.0,0.000149,2]
[392945406,1762163433572,-150.0,0.000149,2]
[392945407,1762163433581,-213.07061349,0.000149,2]
[392945408,1762163433591,-3242.71188726,0.000149,2]
[392945409,1762163433600,-895.02206406,0.000149,2]
[392945410,1762163433610,-562.59782376,0.000149,2]
[392945411,1762163433619,-150.0,0.000149,2]
[392945412,1762163433628,-150.0,0.000149,2]
[392945413,1762163433637,-224.38776277,0.000149,2]
[392945414,1762163433646,-150.0,0.000149,2]
[392945415,1762163433656,-639.0,0.000149,2]
[392945416,1762163433665,-167.1924904,0.000149,2]
[392945417,1762163433674,-158.86102011,0.000149,2]
[392945418,1762163433684,-150.0,0.000149,2]
[392945419,1762163433693,-216.09991313,0.000149,2]
[392945420,1762163433702,-883.0,0.000149,2]
[392945421,1762163433711,-150.0,0.000149,2]
[392945422,1762163433720,-200.0,0.000149,2]
[392945423,1762163433729,-150.0,0.000149,2]
[392945424,1762163433738,-500.0,0.000149,2]
[392945425,1762163433747,-234.55424437,0.000149,2]
[392945426,1762163433759,-500.0,0.000149,2]
[392945427,1762163433770,-318.48269219,0.000149,2]
[392945428,1762163433779,-189.42492089,0.000149,2]
[392945429,1762163433788,-792.06550316,0.000149,2]
[392945430,1762163433797,-476.83,0.000149,2]
[392945431,1762163433806,-565.83780574,0.000149,2]
[392945432,1762163433816,-500.0,0.00014904,2]
[392945433,1762163433825,-3273.625,0.00014927,2]
[392945434,1762163433835,-183.752,0.00014927,2]
[392945435,1762163433844,-1595.0,0.00014944,2]
[392945436,1762163433854,-1271.0,0.00014944,2]
[392945437,1762163433863,-2140.0,0.00014944,2]
[392945438,1762163433872,-5765.176,0.00014944,2]
[392945439,1762163433882,-677.168,0.00014944,2]
[392945440,1762163433891,-168.91989851,0.00014959,2]
[392945441,1762163433900,-184.0,0.00014959,2]
[392945442,1762163433910,-150.0,0.00014959,2]
[392945443,1762163433924,-199.40832095,0.00014959,2]
[392945444,1762163433933,-150.0,0.00014959,2]
[392945445,1762163433942,-157.4294146,0.00014959,2]
[392945446,1762163433952,-242.74415139,0.0001497,2]